fUSD/lending_fUSD_20240616
["ID","MTS","AMOUNT","RATE_DAILY","PERIOD"]
[329634037,1718519463265,-558.88,0.00022465,3]
[329634038,1718519463293,-500.0,0.00022465,3]
[329634039,1718519463306,-500.0,0.00022465,3]
[329634040,1718519463318,-695.39,0.00022465,3]
[329634041,1718519463332,-500.0,0.00022465,3]
[329634042,1718519463343,-500.0,0.00022465,3]
[329634043,1718519463355,-500.0,0.00022465,3]
[329634044,1718519463368,-500.0,0.00022465,3]
[329634045,1718519463382,-500.0,0.00022465,3]
[329634046,1718519463403,-518.8,0.00022465,3]
[329634047,1718519463414,-500.0,0.00022465,3]
[329634048,1718519463425,-500.0,0.00022465,3]
[329634049,1718519463438,-500.0,0.00022465,3]
[329634050,1718519463451,-500.0,0.00022465,3]
[329634051,1718519463468,-500.0,0.00022465,3]
[329634052,1718519463483,-579.83,0.00022465,3]
[329634053,1718519463524,-500.0,0.00022465,3]
[329634054,1718519463538,-500.0,0.00022465,3]
[329634055,1718519463567,-500.0,0.00022465,3]
[329634056,1718519463585,-500.0,0.00022465,3]
[329634057,1718519463604,-500.0,0.00022465,3]
[329634058,1718519463628,-665.03,0.00022465,3]
[329634059,1718519463649,-500.0,0.00022465,3]
[329634060,1718519463671,-517.45355166,0.00022465,3]
[329634061,1718519463683,-215.84497333,0.00022465,3]
[329634062,1718519463694,-500.0,0.00022465,3]
[329634063,1718519463704,-500.0,0.00022465,3]
[329634064,1718519463726,-500.0,0.00022465,3]
[329634065,1718519463742,-500.0,0.00022465,3]
[329634066,1718519463755,-500.0,0.00022465,3]
[329634067,1718519463766,-500.0,0.00022465,3]
[329634068,1718519463788,-500.0,0.00022465,3]
[329634069,1718519463800,-500.0,0.00022465,3]
[329634070,1718519463836,-500.0,0.00022465,3]
[329634071,1718519463850,-500.0,0.00022465,3]
[329634072,1718519463864,-500.0,0.00022465,3]
[329634073,1718519463884,-500.0,0.00022465,3]
[329634074,1718519463920,-500.0,0.00022465,3]
[329634075,1718519463934,-538.51,0.00022465,3]
[329634076,1718519463948,-500.0,0.00022465,3]
[329634077,1718519463965,-577.03,0.00022465,3]
[329634078,1718519463978,-500.0,0.00022465,3]
[329634079,1718519463997,-500.0,0.00022465,3]
[329634080,1718519464008,-500.0,0.00022465,3]
[329634081,1718519464039,-500.0,0.00022465,3]
[329634082,1718519464049,-618.93,0.00022465,3]
[329634083,1718519464073,-500.0,0.00022465,3]
[329634084,1718519464096,-168.70195834,0.00022465,3]
[329634085,1718519464109,-500.0,0.00022465,3]
[329634086,1718519464128,-500.0,0.00022465,3]
[329634087,1718519464143,-689.97,0.00022465,3]
[329634088,1718519464168,-500.0,0.00022465,3]
[329634089,1718519464185,-500.0,0.00022465,3]
[329634090,1718519464195,-500.0,0.00022465,3]
[329634091,1718519464215,-500.0,0.00022465,3]
[329634092,1718519464234,-500.0,0.00022465,3]
[329634093,1718519464249,-500.0,0.00022465,3]
[329634094,1718519464267,-500.0,0.00022465,3]
[329634095,1718519464290,-732.2,0.00022465,3]
[329634096,1718519464315,-500.0,0.00022465,3]
[329634097,1718519464335,-500.0,0.00022465,3]
[329634098,1718519464345,-500.0,0.00022465,3]
[329634099,1718519464355,-500.0,0.00022465,3]
[329634100,1718519464384,-500.0,0.00022465,3]
[329634101,1718519464395,-500.0,0.00022465,3]
[329634102,1718519464419,-500.0,0.00022465,3]
[329634103,1718519464460,-500.0,0.00022465,3]
[329634104,1718519464473,-500.0,0.00022465,3]
[329634105,1718519464484,-500.0,0.00022465,3]
[329634106,1718519464502,-500.0,0.00022465,3]
[329634107,1718519464520,-528.47,0.00022465,3]
[329634108,1718519464534,-500.0,0.00022465,3]
[329634109,1718519464551,-500.0,0.00022465,3]
[329634110,1718519464568,-500.0,0.00022465,3]
[329634111,1718519464583,-500.0,0.00022465,3]
[329634112,1718519464604,-510.30547942,0.00022465,3]
[329634113,1718519464615,-500.0,0.00022465,3]
[329634114,1718519464626,-224.5545138,0.00022465,3]
[329634115,1718519464636,-500.0,0.00022465,3]
[329634116,1718519464657,-500.0,0.00022465,3]
[329634117,1718519464672,-500.0,0.00022465,3]
[329634118,1718519464684,-523.56,0.00022465,3]
[329634119,1718519464705,-500.0,0.00022465,3]
[329634120,1718519464717,-500.0,0.00022465,3]
[329634121,1718519464728,-500.0,0.00022465,3]
[329634122,1718519464739,-784.49,0.00022465,3]
[329634123,1718519464757,-500.0,0.00022465,3]
[329634124,1718519464769,-500.0,0.00022465,3]
[329634125,1718519464781,-500.0,0.00022465,3]
[329634126,1718519464806,-500.0,0.00022465,3]
[329634127,1718519464820,-500.0,0.00022465,3]
[329634128,1718519464837,-500.0,0.00022465,3]
[329634129,1718519464851,-500.0,0.00022465,3]
[329634130,1718519464866,-500.0,0.00022465,3]
[329634131,1718519464884,-500.0,0.00022465,3]
[329634132,1718519464896,-1409.82,0.00022465,3]
[329634133,1718519464907,-628.68,0.00022465,3]
[329634134,1718519464917,-208.85,0.00022465,3]
[329634135,1718519464930,-500.0,0.00022465,3]
[329634136,1718519464966,-500.0,0.00022465,3]
[329634137,1718519465009,-500.0,0.00022465,3]
[329634138,1718519465050,-500.0,0.00022465,3]
[329634139,1718519465113,-500.0,0.00022465,3]
[329634140,1718519465135,-500.0,0.00022465,3]
[329634141,1718519465174,-500.0,0.00022465,3]
[329634142,1718519465200,-500.0,0.00022465,3]
[329634143,1718519465219,-644.15,0.00022465,3]
[329634144,1718519465237,-500.0,0.00022465,3]
[329634145,1718519465251,-500.0,0.00022465,3]
[329634146,1718519465265,-500.0,0.00022465,3]
[329634147,1718519465280,-500.0,0.00022465,3]
[329634148,1718519465293,-500.0,0.00022465,3]
[329634149,1718519465305,-1318.25,0.00022465,3]
[329634150,1718519465317,-500.0,0.00022465,3]
[329634151,1718519465340,-500.0,0.00022465,3]
[329634152,1718519465355,-500.0,0.00022465,3]
[329634153,1718519465365,-500.0,0.00022465,3]
[329634154,1718519465384,-510.93868121,0.00022465,3]
[329634155,1718519465413,-500.0,0.00022465,3]
[329634156,1718519465433,-500.0,0.00022465,3]
[329634157,1718519465444,-500.0,0.00022465,3]
[329634158,1718519465459,-500.0,0.00022465,3]
[329634159,1718519465471,-500.0,0.00022465,3]
[329634160,1718519465483,-827.33,0.00022465,3]
[329634161,1718519465493,-500.0,0.00022465,3]
[329634162,1718519465504,-500.0,0.00022465,3]
[329634163,1718519465526,-526.71,0.00022465,3]
[329634164,1718519465544,-500.0,0.00022465,3]
[329634165,1718519465557,-500.0,0.00022465,3]
[329634166,1718519465573,-500.0,0.00022465,3]
[329634167,1718519465587,-500.0,0.00022465,3]
[329634168,1718519465602,-500.0,0.00022465,3]
[329634169,1718519465613,-500.0,0.00022465,3]
[329634170,1718519465628,-500.0,0.00022465,3]
[329634171,1718519465641,-500.0,0.00022465,3]
[329634172,1718519465653,-500.0,0.00022465,3]
[329634173,1718519465664,-500.0,0.00022465,3]
[329634174,1718519465688,-500.0,0.00022465,3]
[329634175,1718519465700,-178.66020883,0.00022465,3]
[329634176,1718519465717,-666.89,0.00022465,3]
[329634177,1718519465730,-1530.6,0.00022465,3]
[329634178,1718519465742,-528.0,0.00022465,3]
[329634179,1718519465757,-500.0,0.00022465,3]
[329634180,1718519465770,-500.0,0.00022465,3]
[329634181,1718519465793,-1305.62,0.00022465,3]
[329634182,1718519465804,-2959.08,0.00022465,3]
[329634183,1718519465820,-572.8,0.00022465,3]
[329634184,1718519465832,-6771.39,0.00022465,3]
[329634185,1718519465845,-2751.09,0.00022465,3]
[329634186,1718519465860,-500.0,0.00022465,3]
[329634187,1718519465877,-556.12,0.00022465,3]
[329634188,1718519465901,-500.0,0.00022465,3]
[329634189,1718519465916,-500.0,0.00022465,3]
[329634190,1718519465949,-500.318703,0.00022465,3]
[329634191,1718519466019,-500.0,0.00022465,3]
[329634192,1718519466060,-500.318703,0.00022465,3]
[329634193,1718519466072,-4111.44,0.00022465,3]
[329634194,1718519466105,-500.0,0.00022465,3]
[329634195,1718519466149,-517.38,0.00022465,3]
[329634196,1718519466169,-500.0,0.00022465,3]
[329634197,1718519466191,-500.0,0.00022465,3]
[329634198,1718519466210,-1089.23,0.00022465,3]
[329634199,1718519466252,-500.0,0.00022465,3]
[329634200,1718519466269,-752.44,0.00022465,3]
[329634201,1718519466312,-732.83,0.00022465,3]
[329634202,1718519466340,-500.0,0.00022465,3]
[329634203,1718519466354,-500.0,0.00022465,3]
[329634204,1718519466376,-598.68,0.00022465,3]
[329634205,1718519466397,-994.84,0.00022465,3]
[329634206,1718519466418,-16567.34,0.00022465,3]
[329634207,1718519466433,-5825.82,0.00022465,3]
[329634208,1718519466458,-500.0,0.00022465,3]
[329634209,1718519466486,-923.48,0.00022465,3]
[329634210,1718519466499,-896.52,0.00022465,3]
[329634211,1718519466511,-500.0,0.00022465,3]
[329634212,1718519466522,-500.0,0.00022465,3]
[329634213,1718519466542,-565.58,0.00022465,3]
[329634214,1718519466553,-16140.01,0.00022465,3]
[329634215,1718519466567,-500.0,0.00022465,3]
[329634216,1718519466578,-867.54,0.00022465,3]
[329634217,1718519466595,-500.0,0.00022465,3]
[329634218,1718519466608,-500.0,0.00022465,3]
[329634219,1718519466624,-720.86,0.00022465,3]
[329634220,1718519466637,-500.0,0.00022465,3]
[329634221,1718519466652,-500.0,0.00022465,3]
[329634222,1718519466670,-1400.95,0.00022465,3]
[329634223,1718519466681,-500.0,0.00022465,3]
[329634224,1718519466693,-883.04,0.00022465,3]
[329634225,1718519466705,-788.31,0.00022465,3]
[329634226,1718519466716,-614.72,0.00022465,3]
[329634227,1718519466728,-1333.44,0.00022465,3]
[329634228,1718519466740,-636.64,0.00022465,3]
[329634229,1718519466755,-1108.65,0.00022465,3]
[329634230,1718519466787,-1571.99,0.00022465,3]
[329634231,1718519466799,-1584.23,0.00022465,3]
[329634232,1718519466810,-4835.69,0.00022465,3]
[329634233,1718519466822,-500.0,0.00022465,3]
[329634234,1718519466834,-675.02,0.00022465,3]
[329634235,1718519466852,-1506.09,0.00022465,3]
[329634236,1718519466872,-547.67,0.00022465,3]
[329634237,1718519466898,-500.0,0.00022465,3]
[329634238,1718519466928,-500.0,0.00022465,3]
[329634239,1718519466962,-2665.25,0.00022465,3]
[329634240,1718519466980,-500.0,0.00022465,3]
[329634241,1718519466991,-500.0,0.00022465,3]
[329634242,1718519467003,-500.58,0.00022465,3]
[329634243,1718519467016,-768.07,0.00022465,3]
[329634244,1718519467036,-2906.49,0.00022465,3]
[329634245,1718519467048,-551.95,0.00022465,3]
[329634246,1718519467068,-1245.63,0.00022465,3]
[329634247,1718519467103,-500.0,0.00022465,3]
[329634248,1718519467125,-679.0,0.00022465,3]
[329634249,1718519467138,-500.0,0.00022465,3]
[329634250,1718519467153,-954.41,0.00022465,3]
[329634251,1718519467166,-500.0,0.00022465,3]
[329634252,1718519467188,-500.0,0.00022465,3]
[329634253,1718519467201,-500.0,0.00022465,3]
[329634254,1718519467222,-998.69,0.00022465,3]
[329634255,1718519467240,-500.0,0.00022465,3]
[329634256,1718519467255,-500.0,0.00022465,3]
[329634257,1718519467304,-526.53,0.00022465,3]
[329634258,1718519467319,-500.0,0.00022465,3]
[329634259,1718519467335,-574.1,0.00022465,3]
[329634260,1718519467356,-500.0,0.00022465,3]
[329634261,1718519467373,-1602.8,0.00022465,3]
[329634262,1718519467384,-500.0,0.00022465,3]
[329634263,1718519467396,-468.39169901,0.00022465,3]
[329634264,1718519467413,-500.0,0.00022465,3]
[329634265,1718519467431,-1766.79,0.00022465,3]
[329634266,1718519467442,-1254.36,0.00022465,3]
[329634267,1718519467455,-500.0,0.00022465,3]
[329634268,1718519467467,-622.71,0.00022465,3]
[329634269,1718519467489,-500.0,0.00022465,3]
[329634270,1718519467502,-1978.99,0.00022465,3]
[329634271,1718519467514,-500.0,0.00022465,3]
[329634272,1718519467530,-1271.11,0.00022465,3]
[329634273,1718519467569,-897.11,0.00022465,3]
[329634274,1718519467612,-1458.59,0.00022465,3]
[329634275,1718519467625,-673.16,0.00022465,3]
[329634276,1718519467637,-500.0,0.00022465,3]
[329634277,1718519467649,-500.0,0.00022465,3]
[329634278,1718519467661,-500.0,0.00022465,3]
[329634279,1718519467676,-503.26,0.00022465,3]
[329634280,1718519467691,-1882.15,0.00022465,3]
[329634281,1718519467704,-900.94,0.00022465,3]
[329634282,1718519467732,-6355.77,0.00022465,3]
[329634283,1718519467753,-797.28,0.00022465,3]
[329634284,1718519467767,-500.0,0.00022465,3]
[329634285,1718519467796,-500.0,0.00022465,3]
[329634286,1718519467809,-500.0,0.00022465,3]
[329634287,1718519467830,-774.66,0.00022465,3]
[329634288,1718519467849,-749.71,0.00022465,3]
[329634289,1718519467872,-564.43,0.00022465,3]
[329634290,1718519467916,-500.0,0.00022465,3]
[329634291,1718519467954,-1539.73,0.00022465,3]
[329634292,1718519467976,-500.0,0.00022465,3]
[329634293,1718519468002,-500.0,0.00022465,3]
[329634294,1718519468016,-3132.14,0.00022465,3]
[329634295,1718519468036,-500.0,0.00022465,3]
[329634296,1718519468056,-500.0,0.00022465,3]
[329634297,1718519468074,-500.0,0.00022465,3]
[329634298,1718519468091,-500.0,0.00022465,3]
[329634299,1718519468105,-1719.13,0.00022465,3]
[329634300,1718519468144,-500.0,0.00022465,3]
[329634301,1718519468166,-500.0,0.00022465,3]
[329634302,1718519468184,-556.62369299,0.00022465,3]
[329634303,1718519468196,-500.0,0.00022465,3]
[329634304,1718519468209,-877.15,0.00022465,3]
[329634305,1718519468233,-638.19,0.00022465,3]
[329634306,1718519468245,-500.0,0.00022465,3]
[329634307,1718519468256,-507.88,0.00022465,3]
[329634308,1718519468267,-1256.01,0.00022465,3]
[329634309,1718519468279,-1319.04,0.00022465,3]
[329634310,1718519468308,-831.44,0.00022465,3]
[329634311,1718519468340,-500.0,0.00022465,3]
[329634312,1718519468353,-1880.82,0.00022465,3]
[329634313,1718519468395,-889.01,0.00022465,3]
[329634314,1718519468409,-500.0,0.00022465,3]
[329634315,1718519468421,-839.73,0.00022465,3]
[329634316,1718519468440,-1019.43,0.00022465,3]
[329634317,1718519468472,-500.0,0.00022465,3]
[329634318,1718519468518,-876.34,0.00022465,3]
[329634319,1718519468530,-1263.54,0.00022465,3]
[329634320,1718519468545,-1051.98,0.00022465,3]
[329634321,1718519468569,-500.0,0.00022465,3]
[329634322,1718519468584,-868.27,0.00022465,3]
[329634323,1718519468596,-500.0,0.00022465,3]
[329634324,1718519468610,-500.0,0.00022465,3]
[329634325,1718519468624,-1623.39,0.00022465,3]
[329634326,1718519468651,-970.73,0.00022465,3]
[329634327,1718519468663,-898.14,0.00022465,3]
[329634328,1718519468692,-500.0,0.00022465,3]
[329634329,1718519468716,-826.07,0.00022465,3]
[329634330,1718519468733,-500.0,0.00022465,3]
[329634331,1718519468746,-1666.34,0.00022465,3]
[329634332,1718519468760,-882.22,0.00022465,3]
[329634333,1718519468787,-854.76,0.00022465,3]
[329634334,1718519468808,-1419.04,0.00022465,3]
[329634335,1718519468821,-938.36,0.00022465,3]
[329634336,1718519468832,-535.88,0.00022465,3]
[329634337,1718519468845,-771.1,0.00022465,3]
[329634338,1718519468864,-500.0,0.00022465,3]
[329634339,1718519468904,-500.0,0.00022465,3]
[329634340,1718519468939,-546.14,0.00022465,3]
[329634341,1718519468983,-500.0,0.00022465,3]
[329634342,1718519469001,-500.0,0.00022465,3]
[329634343,1718519469033,-1079.11,0.00022465,3]
[329634344,1718519469048,-637.63,0.00022465,3]
[329634345,1718519469065,-500.0,0.00022465,3]
[329634346,1718519469082,-500.0,0.00022465,3]
[329634347,1718519469108,-534.11,0.00022465,3]
[329634348,1718519469126,-500.0,0.00022465,3]
[329634349,1718519469141,-990.93,0.00022465,3]
[329634350,1718519469157,-500.0,0.00022465,3]
[329634351,1718519469187,-733.88,0.00022465,3]
[329634352,1718519469209,-500.0,0.00022465,3]
[329634353,1718519469229,-500.0,0.00022465,3]
[329634354,1718519469272,-500.0,0.00022465,3]
[329634355,1718519469287,-592.82,0.00022465,3]
[329634356,1718519469304,-500.0,0.00022465,3]
[329634357,1718519469345,-2735.16,0.00022465,3]
[329634358,1718519469359,-599.16,0.00022465,3]
[329634359,1718519469389,-620.53431845,0.00022465,3]
[329634360,1718519469404,-631.36,0.00022465,3]
[329634361,1718519469432,-500.0,0.00022465,3]
[329634362,1718519469446,-505.74,0.00022465,3]
[329634363,1718519469468,-609.47,0.00022465,3]
[329634364,1718519469483,-707.73,0.00022465,3]
[329634365,1718519469514,-500.0,0.00022465,3]
[329634366,1718519469527,-151.0,0.00022478,2]
[329634367,1718519469539,-155.988,0.00022478,2]
[329634368,1718519469580,-1372.66042613,0.000225,2]
[329634369,1718519469594,-500.0,0.00022541,2]
[329634370,1718519469619,-308.52320539,0.00022567,2]
[329634371,1718519469632,-230.64039273,0.00022639,2]
[329634372,1718519469656,-210.41,0.00022675,2]
[329634373,1718519469672,-150.0,0.00022675,2]
[329634374,1718519469686,-327.2,0.00022675,2]
[329634375,1718519469699,-237.0,0.0002273,5]
[329634376,1718519469717,-500.0,0.00022738,3]
[329634377,1718519469734,-300.0,0.00022738,2]
[329634378,1718519469769,-500.0,0.00022739,3]
[329634379,1718519469797,-500.0,0.00022739,3]
[329634380,1718519469832,-500.0,0.00022739,3]
[329634381,1718519469846,-621.2251392,0.00022739,3]
[329634382,1718519469861,-500.0,0.00022739,3]
[329634383,1718519469887,-500.0,0.00022739,3]
[329634384,1718519469901,-500.0,0.00022739,3]
[329634385,1718519469915,-500.0,0.00022739,3]
[329634386,1718519469937,-500.0,0.00022739,3]
[329634387,1718519469952,-269.79687332,0.00022739,3]
[329634388,1718519469969,-500.0,0.00022739,3]
[329634389,1718519469986,-500.0,0.00022739,3]
[329634390,1718519470009,-500.0,0.00022739,3]
[329634391,1718519470026,-500.0,0.00022739,3]
[329634392,1718519470051,-500.0,0.00022739,3]
[329634393,1718519470075,-500.0,0.00022739,3]
[329634394,1718519470087,-500.0,0.00022739,3]
[329634395,1718519470102,-500.0,0.00022739,3]
[329634396,1718519470118,-521.55744927,0.00022739,3]
[329634397,1718519470151,-500.0,0.00022739,3]
[329634398,1718519470184,-519.58,0.00022739,3]
[329634399,1718519470197,-500.0,0.00022739,3]
[329634400,1718519470211,-500.0,0.00022739,3]
[329634401,1718519470226,-500.0,0.00022739,3]
[329634402,1718519470239,-229.28198742,0.00022739,3]
[329634403,1718519470262,-500.0,0.00022739,3]
[329634404,1718519470290,-500.0,0.00022739,3]
[329634405,1718519470304,-500.0,0.00022739,3]
[329634406,1718519470319,-500.0,0.00022739,3]
[329634407,1718519470348,-500.0,0.00022739,3]
[329634408,1718519470367,-500.0,0.00022739,3]
[329634409,1718519470385,-500.0,0.00022739,3]
[329634410,1718519470402,-500.0,0.00022739,3]
[329634411,1718519470422,-500.0,0.00022739,3]
[329634412,1718519470448,-500.0,0.00022739,3]
[329634413,1718519470464,-500.0,0.00022739,3]
[329634414,1718519470482,-500.0,0.00022739,3]
[329634415,1718519470504,-500.0,0.00022739,3]
[329634416,1718519470517,-500.0,0.00022739,3]
[329634417,1718519470537,-343.93021015,0.00022739,3]
[329634418,1718519470554,-500.0,0.00022739,3]
[329634419,1718519470568,-521.4,0.00022739,3]
[329634420,1718519470590,-500.0,0.00022739,3]
[329634421,1718519470602,-500.0,0.00022739,3]
[329634422,1718519470616,-500.0,0.00022739,3]
[329634423,1718519470637,-843.59,0.00022739,3]
[329634424,1718519470672,-500.0,0.00022739,3]
[329634425,1718519470691,-203.00552551,0.00022739,3]
[329634426,1718519470717,-500.0,0.00022739,3]
[329634427,1718519470729,-881.45,0.00022739,3]
[329634428,1718519470741,-500.0,0.00022739,3]
[329634429,1718519470768,-500.0,0.00022739,3]
[329634430,1718519470782,-500.0,0.00022739,3]
[329634431,1718519470796,-596.3,0.00022739,3]
[329634432,1718519470826,-500.0,0.00022739,3]
[329634433,1718519470841,-500.0,0.00022739,3]
[329634434,1718519470855,-500.0,0.00022739,3]
[329634435,1718519470872,-500.0,0.00022739,3]
[329634436,1718519470889,-517.49,0.00022739,3]
[329634437,1718519470904,-500.0,0.00022739,3]
[329634438,1718519470933,-517.12,0.00022739,3]
[329634439,1718519470969,-500.0,0.00022739,3]
[329634440,1718519470983,-500.0,0.00022739,3]
[329634441,1718519470997,-500.0,0.00022739,3]
[329634442,1718519471010,-500.0,0.00022739,3]
[329634443,1718519471023,-500.0,0.00022739,3]
[329634444,1718519471039,-500.0,0.00022739,3]
[329634445,1718519471059,-500.0,0.00022739,3]
[329634446,1718519471072,-500.0,0.00022739,3]
[329634447,1718519471087,-500.0,0.00022739,3]
[329634448,1718519471103,-500.0,0.00022739,3]
[329634449,1718519471119,-500.0,0.00022739,3]
[329634450,1718519471133,-558.88,0.00022739,3]
[329634451,1718519471146,-257.59058257,0.00022739,3]
[329634452,1718519471184,-500.0,0.00022739,3]
[329634453,1718519471196,-695.39,0.00022739,3]
[329634454,1718519471212,-500.0,0.00022739,3]
[329634455,1718519471232,-500.0,0.00022739,3]
[329634456,1718519471246,-500.0,0.00022739,3]
[329634457,1718519471259,-500.0,0.00022739,3]
[329634458,1718519471272,-518.8,0.00022739,3]
[329634459,1718519471285,-500.0,0.00022739,3]
[329634460,1718519471297,-500.0,0.00022739,3]
[329634461,1718519471312,-500.0,0.00022739,3]
[329634462,1718519471339,-500.0,0.00022739,3]
[329634463,1718519471377,-500.0,0.00022739,3]
[329634464,1718519471391,-579.83,0.00022739,3]
[329634465,1718519471404,-500.0,0.00022739,3]
[329634466,1718519471417,-500.0,0.00022739,3]
[329634467,1718519471429,-500.0,0.00022739,3]
[329634468,1718519471450,-500.0,0.00022739,3]
[329634469,1718519471463,-500.0,0.00022739,3]
[329634470,1718519471478,-665.03,0.00022739,3]
[329634471,1718519471495,-500.0,0.00022739,3]
[329634472,1718519471518,-500.0,0.00022739,3]
[329634473,1718519471533,-500.0,0.00022739,3]
[329634474,1718519471546,-500.0,0.00022739,3]
[329634475,1718519471558,-576.77172942,0.00022739,3]
[329634476,1718519471572,-500.0,0.00022739,3]
[329634477,1718519471585,-500.0,0.00022739,3]
[329634478,1718519471603,-500.0,0.00022739,3]
[329634479,1718519471618,-538.51,0.00022739,3]
[329634480,1718519471630,-500.0,0.00022739,3]
[329634481,1718519471643,-577.03,0.00022739,3]
[329634482,1718519471680,-500.0,0.00022739,3]
[329634483,1718519471695,-500.0,0.00022739,3]
[329634484,1718519471707,-500.0,0.00022739,3]
[329634485,1718519471729,-618.93,0.00022739,3]
[329634486,1718519471751,-500.0,0.00022739,3]
[329634487,1718519471766,-689.97,0.00022739,3]
[329634488,1718519471781,-500.0,0.00022739,3]
[329634489,1718519471795,-500.0,0.00022739,3]
[329634490,1718519471818,-500.0,0.00022739,3]
[329634491,1718519471833,-500.0,0.00022739,3]
[329634492,1718519471851,-500.0,0.00022739,3]
[329634493,1718519471868,-309.21,0.00022739,3]
[329634494,1718519471882,-370.29775572,0.00022739,3]
[329634495,1718519471900,-732.2,0.00022739,3]
[329634496,1718519471913,-500.0,0.00022739,3]
[329634497,1718519471929,-500.0,0.00022739,3]
[329634498,1718519471945,-500.0,0.00022739,3]
[329634499,1718519471961,-500.0,0.00022739,3]
[329634500,1718519471977,-500.0,0.00022739,3]
[329634501,1718519471999,-500.0,0.00022739,3]
[329634502,1718519472025,-500.0,0.00022739,3]
[329634503,1718519472043,-528.47,0.00022739,3]
[329634504,1718519472056,-500.0,0.00022739,3]
[329634505,1718519472071,-500.0,0.00022739,3]
[329634506,1718519472085,-492.78767653,0.00022739,3]
[329634507,1718519472099,-500.0,0.00022739,3]
[329634508,1718519472112,-332.74836401,0.00022739,3]
[329634509,1718519472129,-523.56,0.00022739,3]
[329634510,1718519472141,-500.0,0.00022739,3]
[329634511,1718519472154,-500.0,0.00022739,3]
[329634512,1718519472174,-387.70667207,0.00022739,3]
[329634513,1718519472187,-784.49,0.00022739,3]
[329634514,1718519472202,-500.0,0.00022739,3]
[329634515,1718519472249,-500.0,0.00022739,3]
[329634516,1718519472261,-500.0,0.00022739,3]
[329634517,1718519472279,-500.0,0.00022739,3]
[329634518,1718519472291,-500.0,0.00022739,3]
[329634519,1718519472303,-500.0,0.00022739,3]
[329634520,1718519472319,-500.0,0.00022739,3]
[329634521,1718519472332,-500.0,0.00022739,3]
[329634522,1718519472344,-1409.82,0.00022739,3]
[329634523,1718519472357,-628.68,0.00022739,3]
[329634524,1718519472369,-208.85,0.00022739,3]
[329634525,1718519472381,-500.0,0.00022739,3]
[329634526,1718519472395,-500.0,0.00022739,3]
[329634527,1718519472409,-500.0,0.00022739,3]
[329634528,1718519472421,-500.0,0.00022739,3]
[329634529,1718519472439,-500.0,0.00022739,3]
[329634530,1718519472461,-644.15,0.00022739,3]
[329634531,1718519472496,-500.0,0.00022739,3]
[329634532,1718519472511,-500.0,0.00022739,3]
[329634533,1718519472535,-1318.25,0.00022739,3]
[329634534,1718519472550,-500.0,0.00022739,3]
[329634535,1718519472564,-500.0,0.00022739,3]
[329634536,1718519472576,-500.0,0.00022739,3]